[Event "HUN-ch U8-U18 2019"]
[Site "Balatonlelle"]
[Date "2019.06.23"]
[Round "3.3"]
[White "Kiraly, Lilla Virag"]
[Black "Horvath, Greta"]
[Result "1-0"]
[ECO "C25"]
[WhiteElo "1557"]
[BlackElo "1020"]
[Annotator "NA"]
[PlyCount "37"]
[EventDate "2019.06.21"]
[EventType "swiss"]
[EventCountry "HUN"]
[SourceTitle "playchess.com"]
[Source "ChessBase"]
[SourceQuality "1"]
[TimeControl "40/5400+30:1800+30"]

1. e4 {[%emt 0:00:10]} e5 {[%emt 0:00:10]} 2. Nc3 {[%emt 0:00:11]} Nc6 {[%emt 0:00:12]} 3. Bc4 {[%emt 0:00:22]} Bc5 {[%emt 0:00:42]} 4. d3 {[%emt 0:00:46]} h6 {[%emt 0:00:39]} 5. f4 {[%emt 0:00:30]} exf4 {[%emt 0:03:33]} 6. Bxf4 {[%emt 0:00:16]} Qf6 {[%emt 0:01:46]} 7. Nge2 {[%emt 0:03:49]} Nge7 {[%emt 0:03:52]} 8. Rf1 {[%emt 0:05:02]} d6 {[%emt 0:08:03]} 9. Bg3 {[%emt 0:04:52]} Qg5 {[%emt 0:04:35]} 10. h4 {[%emt 0:03:37]} Qg4 {[%emt 0:03:14]} 11. Rf4 {[%emt 0:06:44]} Qd7 {[%emt 0:02:19]} 12. Bxf7+ {[%emt 0:00:55]} Kd8 {[%emt 0:01:37]} 13. d4 {[%emt 0:10:12]} g5 {[%emt 0:02:31]} 14. Rf3 {[%emt 0:06:55]} g4 {[%emt 0:03:42]} 15. Rf1 {[%emt 0:05:12]} Bb4 {[%emt 0:03:14]} 16. Nf4 {[%emt 0:03:20]} Bxc3+ {[%emt 0:05:31]} 17. bxc3 {[%emt 0:00:32]} Ng8 {[%emt 0:01:26]} 18. Ng6 {[%emt 0:03:42]} Rh7 {[%emt 0:03:44]} 19. Bxg8 {[%emt 0:00:28]} 1-0

[Event "HUN-ch U8-U18 2019"]
[Site "Balatonlelle"]
[Date "2019.06.23"]
[Round "3.4"]
[White "Toth, Lili"]
[Black "Szarvas, Nora"]
[Result "1-0"]
[ECO "B06"]
[WhiteElo "2199"]
[BlackElo "1258"]
[Annotator "NA"]
[PlyCount "99"]
[EventDate "2019.06.21"]
[EventType "swiss"]
[EventCountry "HUN"]
[SourceTitle "playchess.com"]
[Source "ChessBase"]
[SourceQuality "1"]
[TimeControl "40/5400+30:1800+30"]

1. d4 {[%emt 0:00:03]} g6 {[%emt 0:00:13]} 2. e4 {[%emt 0:00:41]} Bg7 {[%emt 0:00:11]} 3. c4 {[%emt 0:00:28]} c5 {[%emt 0:00:07]} 4. d5 {[%emt 0:01:27]} d6 {[%emt 0:00:14]} 5. Nc3 {[%emt 0:00:53]} Nf6 {[%emt 0:00:45]} 6. Bd3 {[%emt 0:06:01]} O-O {[%emt 0:02:00]} 7. Nge2 {[%emt 0:01:53]} Na6 {[%emt 0:02:06]} 8. a3 {[%emt 0:01:16]} Nc7 {[%emt 0:02:02]} 9. O-O {[%emt 0:01:29]} a6 {[%emt 0:00:53]} 10. b4 {[%emt 0:05:19]} cxb4 {[%emt 0:03:18]} 11. axb4 {[%emt 0:01:26]} Bd7 {[%emt 0:01:16]} 12. Rb1 {[%emt 0:00:58]} b5 {[%emt 0:02:09]} 13. c5 {[%emt 0:00:46]} dxc5 {[%emt 0:01:08]} 14. bxc5 {[%emt 0:00:10]} e6 {[%emt 0:05:26]} 15. d6 {[%emt 0:02:52]} Nce8 {[%emt 0:00:25]} 16. e5 {[%emt 0:04:17]} Ng4 {[%emt 0:01:39]} 17. f4 {[%emt 0:00:26]} f6 {[%emt 0:05:33]} 18. h3 {[%emt 0:00:49]} Nh6 {[%emt 0:00:10]} 19. Be4 {[%emt 0:01:18]} Rc8 {[%emt 0:01:45]} 20. Be3 {[%emt 0:03:46]} fxe5 {[%emt 0:08:27]} 21. fxe5 {[%emt 0:01:27]} Rxf1+ {[%emt 0:00:33]} 22. Qxf1 {[%emt 0:00:53]} Nf7 {[%emt 0:02:27]} 23. Bb7 {[%emt 0:03:32]} Rb8 {[%emt 0:00:32]} 24. c6 {[%emt 0:00:55]} Rxb7 {[%emt 0:03:04]} 25. cxb7 {[%emt 0:00:36]} Bc6 {[%emt 0:01:22]} 26. Bd4 {[%emt 0:04:42]} Nxe5 {[%emt 0:01:52]} 27. Qf4 {[%emt 0:03:47]} Nd3 {[%emt 0:01:15]} 28. Qe3 {[%emt 0:05:37]} e5 {[%emt 0:03:15]} 29. Bc5 {[%emt 0:02:55]} Nxc5 {[%emt 0:00:56]} 30. Qxc5 {[%emt 0:00:58]} Bxb7 {[%emt 0:00:33]} 31. Rd1 {[%emt 0:00:54]} Qg5 {[%emt 0:05:07]} 32. Qf2 {[%emt 0:04:42]} Qd8 {[%emt 0:03:30]} 33. Ng3 {[%emt 0:11:12]} Qd7 {[%emt 0:04:58]} 34. Nce4 {[%emt 0:04:32]} Bxe4 {[%emt 0:00:53]} 35. Nxe4 {[%emt 0:02:01]} h6 {[%emt 0:01:16]} 36. Nc5 {[%emt 0:00:57]} Qd8 {[%emt 0:00:46]} 37. d7 {[%emt 0:00:45]} Nc7 {[%emt 0:00:51]} 38. Nb7 {[%emt 0:01:44]} Qb8 {[%emt 0:00:20]} 39. d8=Q+ {[%emt 0:00:11]} Qxd8 {[%emt 0:00:09]} 40. Rxd8+ {[%emt 0:00:00]} Kh7 {[%emt 0:00:00]} 41. Qf7 {[%emt 0:00:41]} h5 {[%emt 0:00:45]} 42. Qxc7 {[%emt 0:00:17]} Kh6 {[%emt 0:00:16]} 43. Qe7 {[%emt 0:00:38]} b4 {[%emt 0:00:24]} 44. Qxb4 {[%emt 0:00:19]} e4 {[%emt 0:00:31]} 45. Qd2+ {[%emt 0:00:24]} Kh7 {[%emt 0:00:19]} 46. Rd7 {[%emt 0:00:20]} a5 {[%emt 0:00:18]} 47. Qd5 {[%emt 0:00:16]} a4 {[%emt 0:00:15]} 48. Qf7 {[%emt 0:00:06]} Kh6 {[%emt 0:00:07]} 49. h4 {[%emt 0:00:12]} e3 {[%emt 0:00:36]} 50. Qxg7# {[%emt 0:00:43]} 1-0

[Event "HUN-ch U8-U18 2019"]
[Site "Balatonlelle"]
[Date "2019.06.23"]
[Round "3.5"]
[White "Geher, Koppany"]
[Black "Pribelszky, Bence"]
[Result "0-1"]
[ECO "C05"]
[WhiteElo "2089"]
[BlackElo "2244"]
[Annotator "ChessBase"]
[PlyCount "110"]
[EventDate "2019.06.21"]
[EventType "swiss"]
[EventCountry "HUN"]
[SourceTitle "playchess.com"]
[Source "ChessBase"]
[SourceQuality "1"]
[TimeControl "40/5400+30:1800+30"]

1. e4 {[%emt 0:00:03]} e6 {[%emt 0:00:07]} 2. d4 {[%emt 0:00:08]} d5 {[%emt 0:00:06]} 3. Nd2 {[%emt 0:00:07]} Nf6 {[%emt 0:00:08]} 4. e5 {[%emt 0:00:14]} Nfd7 {[%emt 0:00:10]} 5. f4 {[%emt 0:00:09]} c5 {[%emt 0:00:11]} 6. c3 {[%emt 0:00:06]} b6 {[%emt 0:00:28]} 7. Ndf3 {[%emt 0:00:40]} Ba6 {[%emt 0:00:19]} 8. Bxa6 {[%emt 0:01:31]} Nxa6 {[%emt 0:00:07]} 9. Ne2 {[%emt 0:00:16]} Nc7 {[%emt 0:01:15]} 10. O-O {[%emt 0:00:18]} f5 {[%emt 0:00:07]} 11. Be3 {[%emt 0:02:14]} Be7 {[%emt 0:02:07]} 12. Kh1 {[%emt 0:01:16]} c4 {[%emt 0:08:42]} 13. Rg1 {[%emt 0:15:09]} h5 {[%emt 0:11:33]} 14. Qe1 {[%emt 0:04:51]} Nf8 {[%emt 0:03:35]} 15. Qg3 {[%emt 0:09:07]} Kf7 {[%emt 0:01:17]} 16. Rgb1 {[%emt 0:25:11]} b5 {[%emt 0:06:44]} 17. Neg1 {[%emt 0:00:35]} a5 {[%emt 0:09:29]} 18. Qe1 {[%emt 0:01:34]} g6 {[%emt 0:12:24]} 19. Nh3 {[%emt 0:01:18]} Nh7 {[%emt 0:01:35]} 20. b3 {[%emt 0:06:30]} Qd7 {[%emt 0:04:44]} 21. Qd1 {[%emt 0:08:23]} Rhb8 {[%emt 0:03:08]} 22. Bd2 {[%emt 0:05:39]} Rb7 {[%emt 0:03:24]} 23. a3 {[%emt 0:04:20]} cxb3 {[%emt 0:08:12]} 24. Qxb3 {[%emt 0:00:59]} Qc6 {[%emt 0:00:26]} 25. Nf2 {[%emt 0:02:23]} Nf8 {[%emt 0:01:26]} 26. Nh3 {[%emt 0:00:51]} Nd7 {[%emt 0:01:09]} 27. Nhg5+ {[%emt 0:00:02]} Kg7 {[%emt 0:01:26]} 28. h3 {[%emt 0:06:34]} Nb6 {[%emt 0:02:00]} 29. Kh2 {[%emt 0:00:06]} Nc4 {[%emt 0:01:50]} 30. Bc1 {[%emt 0:00:01]} Rab8 {[%emt 0:03:29]} 31. Qc2 {[%emt 0:00:02]} Rh8 {[%emt 0:07:17]} 32. Kh1 {[%emt 0:02:01]} Na8 {[%emt 0:00:49]} 33. Qb3 {[%emt 0:01:00]} a4 {[%emt 0:00:22]} 34. Qc2 {[%emt 0:00:56]} Na5 {[%emt 0:00:24]} 35. Ra2 {[%emt 0:01:55]} Rc8 {[%emt 0:00:18]} 36. Bd2 {[%emt 0:00:53]} Nb3 {[%emt 0:00:50]} 37. Kh2 {[%emt 0:00:32]} Nb6 {[%emt 0:01:22]} 38. Bc1 {[%emt 0:00:26]} Nc4 {[%emt 0:00:27]} 39. Kh1 {[%emt 0:00:34]} Rb6 {[%emt 0:00:35]} 40. Kh2 {[%emt 0:00:00]} Nca5 {[%emt 0:00:00]} 41. Bb2 {[%emt 0:03:01]} Bxg5 {[%emt 0:12:26]} 42. fxg5 {[%emt 0:00:42]} Qc4 {[%emt 0:01:16]} 43. Bc1 {[%emt 0:02:51]} Qxc3 {[%emt 0:03:14]} 44. Qxc3 {[%emt 0:02:07]} Rxc3 {[%emt 0:00:06]} 45. Bd2 {[%emt 0:00:07]} Nxd2 {[%emt 0:06:28]} 46. Nxd2 {[%emt 0:00:06]} Nc4 {[%emt 0:03:22]} 47. Rba1 {[%emt 0:03:06]} Nxd2 {[%emt 0:07:26]} 48. Rxd2 {[%emt 0:00:06]} b4 {[%emt 0:01:10]} 49. axb4 {[%emt 0:00:06]} Rxb4 {[%emt 0:00:05]} 50. Kg1 {[%emt 0:00:25]} Rcc4 {[%emt 0:00:38]} 51. Rad1 {[%emt 0:00:08]} Kf7 {[%emt 0:00:26]} 52. Kf2 {[%emt 0:00:05]} Ke7 {[%emt 0:00:27]} 53. Ke3 {[%emt 0:00:06]} Kd7 {[%emt 0:00:18]} 54. Rd3 {[%emt 0:00:28]} Kc6 {[%emt 0:01:03]} 55. Ra1 {[%emt 0:01:54]} Kb5 {[%emt 0:00:40]} 0-1

[Event "HUN-ch U8-U18 2019"]
[Site "Balatonlelle"]
[Date "2019.06.23"]
[Round "3.5"]
[White "Beznicza, Mira"]
[Black "Eros, Vivien"]
[Result "0-1"]
[ECO "C10"]
[WhiteElo "1188"]
[BlackElo "1317"]
[Annotator "NA"]
[PlyCount "54"]
[EventDate "2019.06.21"]
[EventType "swiss"]
[EventCountry "HUN"]
[SourceTitle "playchess.com"]
[Source "ChessBase"]
[SourceQuality "1"]
[TimeControl "40/5400+30:1800+30"]

1. e4 {[%emt 0:00:04]} e6 {[%emt 0:00:38]} 2. Nf3 {[%emt 0:00:17]} d5 {[%emt 0:00:35]} 3. Nc3 {[%emt 0:00:21]} dxe4 {[%emt 0:00:23]} 4. Nxe4 {[%emt 0:00:20]} Bd7 {[%emt 0:00:30]} 5. d4 {[%emt 0:00:24]} Bc6 {[%emt 0:00:25]} 6. Bd3 {[%emt 0:00:17]} Nd7 {[%emt 0:00:05]} 7. Qe2 {[%emt 0:00:19]} Ngf6 {[%emt 0:00:21]} 8. O-O {[%emt 0:00:16]} Nxe4 {[%emt 0:01:10]} 9. Bxe4 {[%emt 0:00:21]} Bxe4 {[%emt 0:00:03]} 10. Qxe4 {[%emt 0:00:14]} Nf6 {[%emt 0:03:24]} 11. Qxb7 {[%emt 0:01:23]} Bd6 {[%emt 0:01:45]} 12. Bg5 {[%emt 0:01:04]} O-O {[%emt 0:03:34]} 13. Bxf6 {[%emt 0:00:58]} Qxf6 {[%emt 0:00:27]} 14. Qe4 {[%emt 0:00:45]} Rab8 {[%emt 0:05:23]} 15. Rab1 {[%emt 0:01:06]} Rb5 {[%emt 0:02:37]} 16. c4 {[%emt 0:00:57]} Rf5 {[%emt 0:02:30]} 17. g3 {[%emt 0:01:48]} Rxf3 {[%emt 0:00:36]} 18. b3 {[%emt 0:02:04]} Qf5 {[%emt 0:01:34]} 19. Qe2 {[%emt 0:00:54]} Qg4 {[%emt 0:05:46]} 20. Qd2 {[%emt 0:01:18]} h5 {[%emt 0:01:42]} 21. h4 {[%emt 0:00:31]} Bf4 {[%emt 0:08:22]} 22. Qc2 {[%emt 0:00:54]} Bxg3 {[%emt 0:01:20]} 23. fxg3 {[%emt 0:00:54]} Rxg3+ {[%emt 0:00:24]} 24. Kh1 {[%emt 0:01:11]} Qxh4+ {[%emt 0:01:30]} 25. Qh2 {[%emt 0:00:16]} Qe4+ {[%emt 0:00:10]} 26. Rf3 {[%emt 0:00:34]} Qxf3+ {[%emt 0:00:18]} 27. Qg2 {[%emt 0:00:14]} Qxg2# 0-1

[Event "HUN-ch U8-U18 2019"]
[Site "Balatonlelle"]
[Date "2019.06.23"]
[Round "3.6"]
[White "Dibusz, Domonkos"]
[Black "Ongut, Tamas Gunes"]
[Result "1/2-1/2"]
[ECO "B90"]
[WhiteElo "2067"]
[BlackElo "2120"]
[Annotator "NA"]
[PlyCount "45"]
[EventDate "2019.06.21"]
[EventType "swiss"]
[EventCountry "HUN"]
[SourceTitle "playchess.com"]
[Source "ChessBase"]
[SourceQuality "1"]
[TimeControl "40/5400+30:1800+30"]

1. e4 {[%emt 0:00:02]} c5 {[%emt 0:02:27]} 2. Nf3 {[%emt 0:00:37]} d6 {[%emt 0:00:10]} 3. d4 cxd4 {[%emt 0:00:32]} 4. Nxd4 {[%emt 0:01:32]} Nf6 {[%emt 0:00:36]} 5. Nc3 {[%emt 0:01:00]} a6 {[%emt 0:00:19]} 6. Be3 {[%emt 0:02:40]} e5 {[%emt 0:00:20]} 7. Nb3 {[%emt 0:00:41]} Be6 {[%emt 0:00:11]} 8. h3 {[%emt 0:00:20]} Be7 {[%emt 0:00:20]} 9. f4 {[%emt 0:00:59]} exf4 {[%emt 0:00:12]} 10. Bxf4 {[%emt 0:00:14]} Nc6 {[%emt 0:00:05]} 11. Qe2 {[%emt 0:01:14]} Nd7 {[%emt 0:01:11]} 12. O-O-O {[%emt 0:02:29]} Nce5 {[%emt 0:03:09]} 13. Nd5 {[%emt 0:02:54]} Bxd5 {[%emt 0:00:08]} 14. exd5 {[%emt 0:00:30]} O-O {[%emt 0:00:07]} 15. Kb1 {[%emt 0:02:33]} Re8 {[%emt 0:00:55]} 16. Qd2 {[%emt 0:01:28]} b5 {[%emt 0:05:35]} 17. Nd4 {[%emt 0:06:05]} Bf6 {[%emt 0:08:58]} 18. g4 {[%emt 0:04:15]} g6 {[%emt 0:07:15]} 19. g5 {[%emt 0:18:00]} Bg7 {[%emt 0:00:08]} 20. h4 {[%emt 0:00:40]} Nb6 {[%emt 0:09:19]} 21. Bxe5 {[%emt 0:08:13]} dxe5 {[%emt 0:00:08]} 22. Nc6 {[%emt 0:02:55]} Qd6 {[%emt 0:03:50]} 23. Qb4 {[%emt 0:03:59]} 1/2-1/2

[Event "HUN-ch U8-U18 2019"]
[Site "Balatonlelle"]
[Date "2019.06.23"]
[Round "3.6"]
[White "Gabor, Maria"]
[Black "Molnar, Dalma Reka"]
[Result "1-0"]
[ECO "C50"]
[WhiteElo "1308"]
[BlackElo "1139"]
[Annotator "NA"]
[PlyCount "75"]
[EventDate "2019.06.21"]
[EventType "swiss"]
[EventCountry "HUN"]
[SourceTitle "playchess.com"]
[Source "ChessBase"]
[SourceQuality "1"]
[TimeControl "40/5400+30:1800+30"]

1. e4 {[%emt 0:02:57]} e5 {[%emt 0:00:09]} 2. Nf3 {[%emt 0:00:19]} Nc6 {[%emt 0:00:21]} 3. Bc4 {[%emt 0:00:16]} Nf6 {[%emt 0:00:45]} 4. d3 {[%emt 0:00:34]} Bc5 {[%emt 0:00:32]} 5. c3 {[%emt 0:01:00]} d6 {[%emt 0:00:53]} 6. Bg5 {[%emt 0:02:47]} h6 {[%emt 0:00:29]} 7. Bh4 {[%emt 0:03:59]} g5 {[%emt 0:00:22]} 8. Bg3 {[%emt 0:00:20]} Be6 {[%emt 0:01:46]} 9. Nbd2 {[%emt 0:03:35]} Qd7 {[%emt 0:01:22]} 10. a4 {[%emt 0:00:27]} Rg8 {[%emt 0:03:15]} 11. b4 {[%emt 0:01:18]} h5 {[%emt 0:01:03]} 12. h3 {[%emt 0:02:43]} h4 {[%emt 0:00:42]} 13. Bh2 {[%emt 0:00:09]} Bxf2+ {[%emt 0:00:09]} 14. Kxf2 {[%emt 0:00:54]} g4 {[%emt 0:00:33]} 15. hxg4 {[%emt 0:04:54]} Bxg4 {[%emt 0:01:23]} 16. Qe2 {[%emt 0:13:25]} O-O-O {[%emt 0:01:47]} 17. Ke1 {[%emt 0:02:11]} h3 {[%emt 0:01:18]} 18. gxh3 {[%emt 0:07:32]} Bxh3 {[%emt 0:00:23]} 19. Rg1 {[%emt 0:01:40]} Qe7 {[%emt 0:01:54]} 20. Kd1 {[%emt 0:00:37]} Ng4 {[%emt 0:03:40]} 21. Kc2 {[%emt 0:01:23]} a5 {[%emt 0:03:57]} 22. b5 {[%emt 0:05:22]} Nb8 {[%emt 0:00:36]} 23. Bg3 {[%emt 0:01:13]} Nf6 {[%emt 0:01:21]} 24. Qf2 {[%emt 0:00:34]} Ng4 {[%emt 0:02:14]} 25. Qa7 {[%emt 0:01:41]} b6 {[%emt 0:01:20]} 26. Bh4 {[%emt 0:03:29]} Nf6 {[%emt 0:01:04]} 27. Bd5 {[%emt 0:00:44]} Kd7 {[%emt 0:01:19]} 28. Nc4 {[%emt 0:04:03]} Be6 {[%emt 0:01:39]} 29. Nxb6+ {[%emt 0:00:21]} Ke8 {[%emt 0:00:29]} 30. Rxg8+ {[%emt 0:00:13]} Nxg8 {[%emt 0:00:38]} 31. Bxe7 {[%emt 0:00:09]} Nxe7 {[%emt 0:00:20]} 32. Bxe6 {[%emt 0:00:46]} fxe6 {[%emt 0:00:27]} 33. Qxc7 {[%emt 0:00:27]} d5 {[%emt 0:00:35]} 34. exd5 {[%emt 0:00:42]} exd5 {[%emt 0:00:11]} 35. Nxe5 {[%emt 0:00:24]} d4 {[%emt 0:00:30]} 36. Rg1 {[%emt 0:00:22]} dxc3 {[%emt 0:00:21]} 37. Rg8+ {[%emt 0:00:08]} Nxg8 {[%emt 0:00:11]} 38. Qf7# {[%emt 0:00:04]} 1-0

[Event "HUN-ch U8-U18 2019"]
[Site "Balatonlelle"]
[Date "2019.06.23"]
[Round "3.7"]
[White "Juhasz, Agoston"]
[Black "Borhy, Marcell"]
[Result "0-1"]
[ECO "B01"]
[WhiteElo "2161"]
[BlackElo "2374"]
[Annotator "NA"]
[PlyCount "85"]
[EventDate "2019.06.21"]
[EventType "swiss"]
[EventCountry "HUN"]
[SourceTitle "playchess.com"]
[Source "ChessBase"]
[SourceQuality "1"]
[TimeControl "40/5400+30:1800+30"]

1. e4 {[%emt 0:00:04]} d5 {[%emt 0:00:22]} 2. exd5 {[%emt 0:00:13]} Nf6 {[%emt 0:00:07]} 3. d4 {[%emt 0:00:56]} Nxd5 {[%emt 0:00:08]} 4. c4 {[%emt 0:01:35]} Nb6 {[%emt 0:00:08]} 5. Nc3 {[%emt 0:01:06]} e5 {[%emt 0:00:21]} 6. dxe5 {[%emt 0:10:17]} Qxd1+ {[%emt 0:00:12]} 7. Nxd1 {[%emt 0:03:01]} Nc6 {[%emt 0:00:15]} 8. f4 {[%emt 0:07:09]} Be6 {[%emt 0:00:23]} 9. Ne3 {[%emt 0:07:10]} Bc5 {[%emt 0:01:48]} 10. Nf3 {[%emt 0:05:46]} Bxe3 {[%emt 0:26:10]} 11. Bxe3 {[%emt 0:00:12]} Nxc4 {[%emt 0:00:10]} 12. Bxc4 {[%emt 0:16:52]} Bxc4 {[%emt 0:00:02]} 13. b3 {[%emt 0:01:25]} Ba6 {[%emt 0:05:26]} 14. Kf2 {[%emt 0:18:52]} Nb4 {[%emt 0:11:47]} 15. Ng5 {[%emt 0:03:55]} h6 {[%emt 0:06:43]} 16. Ne4 {[%emt 0:01:11]} Nd3+ {[%emt 0:03:38]} 17. Kf3 {[%emt 0:01:04]} b6 {[%emt 0:00:34]} 18. Nf2 {[%emt 0:04:22]} Bb7+ {[%emt 0:04:13]} 19. Ke2 {[%emt 0:00:50]} Nb4 {[%emt 0:00:53]} 20. a3 {[%emt 0:01:51]} Nd5 {[%emt 0:00:53]} 21. Rac1 {[%emt 0:01:21]} O-O-O {[%emt 0:00:33]} 22. Nd3 {[%emt 0:05:43]} g5 {[%emt 0:06:48]} 23. fxg5 {[%emt 0:01:16]} Nxe3 {[%emt 0:00:11]} 24. Kxe3 {[%emt 0:00:06]} hxg5 {[%emt 0:00:03]} 25. Rc2 {[%emt 0:01:58]} Rh4 {[%emt 0:00:53]} 26. Rc4 {[%emt 0:01:50]} Ba6 {[%emt 0:00:20]} 27. Rc3 {[%emt 0:00:52]} Rhd4 {[%emt 0:03:32]} 28. Nb4 {[%emt 0:01:28]} Bb7 {[%emt 0:00:07]} 29. Nc6 {[%emt 0:01:09]} Bxc6 {[%emt 0:00:21]} 30. Rxc6 {[%emt 0:00:01]} Rd3+ {[%emt 0:02:22]} 31. Ke4 {[%emt 0:00:04]} Rxb3 {[%emt 0:00:09]} 32. Rhc1 {[%emt 0:00:59]} Rd7 {[%emt 0:00:05]} 33. R1c3 {[%emt 0:00:41]} Rxc3 {[%emt 0:00:59]} 34. Rxc3 {[%emt 0:00:02]} c5 {[%emt 0:00:24]} 35. Kf5 {[%emt 0:01:21]} Rd2 {[%emt 0:00:43]} 36. Kxg5 {[%emt 0:00:42]} Rxg2+ {[%emt 0:00:26]} 37. Kf6 {[%emt 0:00:01]} Rf2+ {[%emt 0:01:14]} 38. Ke7 {[%emt 0:00:05]} Kc7 {[%emt 0:01:21]} 39. Rd3 {[%emt 0:01:19]} c4 {[%emt 0:02:33]} 40. Rd4 {[%emt 0:00:00]} b5 {[%emt 0:00:00]} 41. h4 {[%emt 0:13:55]} Rf5 {[%emt 0:06:41]} 42. Re4 {[%emt 0:07:31]} Kc6 {[%emt 0:00:44]} 43. e6 0-1

[Event "HUN-ch U8-U18 2019"]
[Site "Balatonlelle"]
[Date "2019.06.23"]
[Round "3.7"]
[White "Palczert, Botond"]
[Black "Papp, Bence"]
[Result "1/2-1/2"]
[ECO "A80"]
[WhiteElo "2068"]
[BlackElo "2094"]
[Annotator "NA"]
[PlyCount "132"]
[EventDate "2019.06.21"]
[EventType "swiss"]
[EventCountry "HUN"]
[SourceTitle "playchess.com"]
[Source "ChessBase"]
[SourceQuality "1"]
[TimeControl "40/5400+30:1800+30"]

1. d4 {[%emt 0:00:03]} f5 {[%emt 0:00:05]} 2. Nc3 {[%emt 0:00:07]} Nf6 {[%emt 0:00:05]} 3. Bg5 {[%emt 0:00:05]} d5 {[%emt 0:00:05]} 4. Bxf6 {[%emt 0:00:12]} exf6 {[%emt 0:00:05]} 5. e3 {[%emt 0:00:35]} Be6 {[%emt 0:00:09]} 6. Qf3 {[%emt 0:00:35]} c6 {[%emt 0:00:26]} 7. Bd3 {[%emt 0:02:30]} g6 {[%emt 0:00:11]} 8. Nge2 {[%emt 0:12:05]} Nd7 {[%emt 0:00:24]} 9. O-O-O {[%emt 0:06:46]} Bd6 {[%emt 0:01:50]} 10. h3 {[%emt 0:01:38]} Qe7 {[%emt 0:04:57]} 11. g4 {[%emt 0:03:11]} fxg4 {[%emt 0:00:08]} 12. hxg4 {[%emt 0:01:13]} O-O-O {[%emt 0:00:19]} 13. Rh6 {[%emt 0:02:36]} Rhg8 {[%emt 0:00:50]} 14. Nf4 {[%emt 0:02:44]} Bxf4 {[%emt 0:00:44]} 15. Qxf4 {[%emt 0:00:58]} Nf8 {[%emt 0:04:58]} 16. Na4 {[%emt 0:15:25]} Rg7 {[%emt 0:02:06]} 17. Nc5 {[%emt 0:01:26]} Bg8 {[%emt 0:00:34]} 18. Be2 {[%emt 0:11:39]} Qd6 {[%emt 0:01:53]} 19. Qxd6 {[%emt 0:01:42]} Rxd6 {[%emt 0:00:08]} 20. Rdh1 {[%emt 0:10:17]} Re7 {[%emt 0:03:00]} 21. Bf3 {[%emt 0:07:07]} b6 {[%emt 0:02:01]} 22. Nd3 {[%emt 0:02:20]} Ne6 {[%emt 0:00:27]} 23. Kd2 {[%emt 0:01:20]} Ng5 {[%emt 0:06:46]} 24. Bg2 {[%emt 0:00:02]} Be6 {[%emt 0:06:59]} 25. f4 {[%emt 0:00:27]} Nf7 {[%emt 0:00:31]} 26. Rxh7 {[%emt 0:01:08]} Bxg4 {[%emt 0:00:44]} 27. Bh3 {[%emt 0:00:13]} Bxh3 {[%emt 0:01:55]} 28. R1xh3 Rde6 29. f5 {[%emt 0:05:25]} gxf5 {[%emt 0:00:59]} 30. Nf4 {[%emt 0:01:02]} Re4 {[%emt 0:05:08]} 31. b3 {[%emt 0:01:25]} Ng5 {[%emt 0:00:44]} 32. Rxe7 {[%emt 0:01:00]} Rxe7 {[%emt 0:00:07]} 33. Rh8+ {[%emt 0:00:02]} Kb7 {[%emt 0:00:18]} 34. Rh5 {[%emt 0:02:57]} Kc7 {[%emt 0:00:57]} 35. Kd3 {[%emt 0:01:01]} Kd6 {[%emt 0:01:46]} 36. Rh6 {[%emt 0:00:41]} Ne4 {[%emt 0:00:44]} 37. Rh5 {[%emt 0:00:55]} Nf2+ {[%emt 0:02:15]} 38. Kd2 {[%emt 0:00:28]} Ne4+ {[%emt 0:00:59]} 39. Kd3 {[%emt 0:00:02]} Rg7 {[%emt 0:04:57]} 40. c4 {[%emt 0:00:00]} Rg1 {[%emt 0:00:00]} 41. cxd5 {[%emt 0:04:28]} Rd1+ {[%emt 0:05:01]} 42. Kc2 {[%emt 0:00:44]} Rd2+ {[%emt 0:00:07]} 43. Kc1 {[%emt 0:00:32]} Rxa2 {[%emt 0:00:48]} 44. dxc6 {[%emt 0:09:43]} Kxc6 {[%emt 0:02:04]} 45. Rxf5 {[%emt 0:03:35]} Rf2 {[%emt 0:00:22]} 46. Rh5 {[%emt 0:01:26]} Rf3 47. Nd5 {[%emt 0:04:20]} a5 {[%emt 0:02:38]} 48. Rf5 {[%emt 0:02:51]} Rxf5 {[%emt 0:00:28]} 49. Ne7+ {[%emt 0:00:01]} Kb5 {[%emt 0:00:46]} 50. Nxf5 {[%emt 0:00:18]} Kb4 {[%emt 0:00:10]} 51. Kc2 {[%emt 0:00:44]} b5 {[%emt 0:09:00]} 52. Ne7 {[%emt 0:01:12]} a4 {[%emt 0:01:48]} 53. Nd5+ {[%emt 0:04:53]} Ka5 {[%emt 0:01:58]} 54. bxa4 {[%emt 0:01:58]} bxa4 {[%emt 0:00:35]} 55. Kb2 {[%emt 0:01:30]} f5 {[%emt 0:01:53]} 56. Ne7 {[%emt 0:04:23]} Nd6 {[%emt 0:00:14]} 57. Nc6+ {[%emt 0:00:45]} Kb5 {[%emt 0:01:17]} 58. Ne5 {[%emt 0:00:02]} Kb4 {[%emt 0:01:00]} 59. Nc6+ {[%emt 0:00:36]} Kb5 {[%emt 0:02:29]} 60. Ne5 {[%emt 0:00:08]} Ne8 {[%emt 0:00:27]} 61. Nf7 {[%emt 0:01:11]} Kc4 {[%emt 0:01:23]} 62. Ka3 {[%emt 0:00:33]} Kb5 {[%emt 0:01:04]} 63. d5 {[%emt 0:00:14]} Kc5 {[%emt 0:00:47]} 64. Kxa4 {[%emt 0:00:12]} Kxd5 {[%emt 0:00:10]} 65. Nh6 {[%emt 0:00:02]} Ke4 {[%emt 0:00:10]} 66. Nxf5 {[%emt 0:00:10]} Kxf5 {[%emt 0:00:06]} 1/2-1/2